bitfinex/quotes_ETHUSD_20250115
["timestamp","ask_amount","ask_price","bid_price","bid_amount"]
[1736920464644,3.10788926,3238.2,3237.9,0.7777]
[1736920474694,3.10788926,3238.2,3238.0,0.176]
[1736920475045,3.41867819,3238.2,3238.0,0.176]
[1736920475395,3.08823,3238.1,3238.0,0.176]
[1736920475675,3.08871,3237.6,3237.3,1.93066779]
[1736920475847,3.08889,3237.4,3237.3,1.93066779]
[1736920476052,3.08889,3237.4,3237.3,2.10666779]
[1736920476681,3.08889,3237.4,3237.3,0.176]
[1736920479895,3.08888,3237.5,3237.3,0.176]
[1736920480064,0.01975926,3237.4,3237.3,0.176]
[1736920480391,3.08888,3237.5,3237.3,0.176]
[1736920480597,3.08865,3237.7,3237.3,0.176]
[1736920480776,3.08865,3237.7,3237.3,1.55284047]
[1736920481312,0.01975926,3237.7,3237.5,1.37684047]
[1736920481594,3.08859,3237.8,3237.4,1.0059]
[1736920481802,0.01975926,3237.7,3237.4,1.0059]
[1736920484492,3.10837926,3237.7,3237.5,1.37684047]
[1736920484792,3.8414,3237.6,3237.5,0.176]
[1736920485201,3.0887,3237.6,3237.5,0.176]
[1736920489600,3.08498163,3237.6,3237.5,0.176]
[1736920492097,0.01975926,3237.7,3237.5,0.176]
[1736920492280,3.08833,3238.0,3237.5,0.9456]
[1736920492471,0.8096,3238.1,3237.6,1.37684047]
[1736920492472,1.21018509,3238.1,3237.6,1.37684047]
[1736920492805,0.01975926,3238.0,3237.6,1.37684047]
[1736920494104,3.89753,3238.5,3237.9,0.7696]
[1736920494404,0.01975926,3238.4,3238.0,1.37684047]
[1736920495779,3.10773926,3238.4,3237.9,0.7696]
[1736920496194,0.01975926,3238.4,3237.9,0.7696]
[1736920496478,3.08813,3238.2,3237.9,0.7696]
[1736920496679,0.01975926,3238.1,3237.9,0.7696]
[1736920498093,0.01975926,3238.1,3237.8,1.37684047]
[1736920499010,3.10769926,3238.4,3237.8,1.37684047]
[1736920499190,3.08809,3238.3,3237.8,1.37684047]
[1736920499392,0.01975926,3238.2,3237.8,1.37684047]
[1736920501221,0.01975926,3238.2,3237.8,1.59148452]
[1736920505088,3.08809,3238.3,3237.8,1.59148452]
[1736920505417,0.62772692,3238.6,3238.1,1.37684047]
[1736920505629,0.62772692,3238.6,3238.4,1.37684047]
[1736920505789,0.62772692,3238.6,3238.5,0.176]
[1736920505989,0.64748618,3238.6,3238.5,0.176]
[1736920507524,3.10750926,3238.6,3238.5,0.176]
[1736920508824,3.08775,3238.6,3238.5,0.176]
[1736920509012,0.63269207,3238.7,3238.5,0.176]
[1736920510586,0.63269207,3238.7,3238.5,0.932]
[1736920512222,3.72036207,3238.7,3238.5,0.932]
[1736920512518,3.74012133,3238.7,3238.5,0.932]
[1736920514113,3.72036207,3238.7,3238.5,0.932]
[1736920515432,0.63269207,3238.7,3238.6,1.37684047]
[1736920515632,0.63269207,3238.7,3238.6,1.60772452]
[1736920517135,3.08747,3238.9,3238.6,1.60772452]
[1736920517319,0.01975926,3238.8,3238.5,0.176]
[1736920517512,3.08775,3238.6,3238.5,0.176]
[1736920520335,3.08799,3238.4,3238.0,0.7556]
[1736920520502,3.08814,3238.2,3238.1,0.176]
[1736920520834,3.08835,3238.0,3237.6,1.37684047]
[1736920521033,0.01975926,3237.9,3237.7,0.176]
[1736920521757,3.08835,3238.0,3237.7,0.176]
[1736920522804,3.10821926,3237.9,3237.7,0.176]
[1736920523042,3.10821926,3237.9,3237.6,1.37684047]
[1736920523377,0.81085926,3237.9,3237.0,0.7556]
[1736920523643,3.08896,3237.4,3237.1,0.176]
[1736920523816,3.10874926,3237.3,3237.1,0.176]
[1736920524147,3.10874926,3237.3,3237.2,0.176]
[1736920526779,0.01975926,3237.3,3237.2,0.176]
[1736920526944,3.08882,3237.5,3237.2,0.176]
[1736920529658,3.08872,3237.6,3237.2,0.176]
[1736920530046,0.01975926,3237.5,3237.2,0.176]
[1736920531250,3.08872,3237.6,3237.2,0.176]
[1736920531522,0.01975926,3237.5,3237.2,0.176]
[1736920532865,3.10857926,3237.5,3237.2,0.176]
[1736920535363,3.08882,3237.5,3237.2,0.176]
[1736920554100,0.01975926,3237.8,3237.2,0.176]
[1736920554303,3.08889,3237.4,3237.3,1.32202045]
[1736920555896,3.08889,3237.4,3237.2,0.176]
[1736920557798,3.10874926,3237.3,3237.2,0.176]
[1736920560474,0.01975926,3237.4,3237.2,0.9971]
[1736920563832,3.08864,3237.7,3237.2,0.9971]
[1736920563990,3.08864,3237.7,3237.3,1.37642277]
[1736920564373,0.01975926,3237.6,3237.3,1.37642277]
[1736920564905,0.01975926,3237.6,3237.4,0.176]
[1736920567943,0.01975926,3237.6,3237.4,1.55242277]
[1736920568088,3.08821,3238.2,3237.5,0.99533073]
[1736920568420,3.08798,3238.4,3238.1,1.37642277]
[1736920568620,3.08778,3238.6,3238.3,1.37642277]
[1736920568815,3.08759,3238.8,3238.4,0.9852]
[1736920569582,3.08768,3238.7,3238.4,0.9852]
[1736920571593,0.7548,3239.0,3238.4,0.9852]
[1736920571594,3.08749,3238.9,3238.5,1.37642277]
[1736920571959,3.08729,3239.1,3238.5,1.37642277]
[1736920572614,3.08729,3239.1,3238.7,1.37642277]
[1736920576354,0.01975926,3239.0,3238.7,1.37642277]
[1736920579186,3.08709,3239.3,3238.8,0.8092]
[1736920579402,3.10694926,3239.2,3238.9,1.37642277]
[1736920582569,3.10694926,3239.2,3239.0,0.176]
[1736920584050,3.08719,3239.2,3239.0,0.176]
[1736920585534,3.08719,3239.2,3238.9,1.37642277]
[1736920585740,3.08719,3239.2,3239.1,0.176]
[1736920588374,3.08719,3239.2,3238.9,1.37642277]
[1736920588574,3.08719,3239.2,3239.0,0.176]
[1736920589743,3.08702,3239.4,3239.0,0.176]
[1736920589943,0.7548,3239.5,3239.0,0.176]
[1736920590654,3.08715,3239.3,3239.0,0.176]
[1736920592014,3.08721,3239.2,3239.0,0.176]
[1736920601583,3.08721,3239.2,3238.8,0.8092]
[1736920601788,3.08728,3239.1,3238.9,0.176]
[1736920604987,3.0871,3239.3,3238.9,0.176]
[1736920605810,3.03084178,3239.3,3238.9,0.176]
[1736920610107,3.10694926,3239.2,3238.9,0.176]
[1736920613811,3.08719,3239.2,3238.9,0.176]
[1736920621005,3.08719,3239.2,3239.0,0.176]
[1736920628759,3.08703,3239.4,3239.0,0.176]
[1736920630380,0.01975926,3239.3,3239.0,0.176]
[1736920630660,3.08703,3239.4,3239.1,0.176]
[1736920631262,0.01975926,3239.3,3239.1,0.176]
[1736920632461,3.08703,3239.4,3239.1,0.176]
[1736920632950,0.01975926,3239.3,3239.1,0.176]
[1736920634958,0.7776,3239.7,3239.2,0.82]
[1736920635133,3.08665,3239.8,3239.2,0.82]
[1736920635134,3.08665,3239.8,3239.3,0.23724228]
[1736920635339,3.10649926,3239.7,3239.2,0.82]
[1736920635540,3.08682,3239.6,3239.2,0.82]
[1736920635736,0.01975926,3239.5,3239.2,0.82]
[1736920639831,0.81,3239.5,3238.8,1.28502697]
[1736920640165,0.01975926,3239.4,3238.9,0.176]
[1736920641353,0.41141819,3239.4,3238.6,1.28502697]
[1736920641555,3.89758,3238.8,3238.7,0.176]
[1736920641783,3.08765,3238.7,3238.6,1.28502697]
[1736920641931,3.08775,3238.6,3238.5,0.176]
[1736920643568,3.08759,3238.8,3238.5,1.55242277]
[1736920643762,3.8974,3239.0,3238.5,1.55242277]
[1736920644079,3.0874,3239.0,3238.6,0.82]
[1736920644237,0.01975926,3238.9,3238.6,0.82]
[1736920644573,3.08758,3238.8,3238.5,0.176]
[1736920644756,0.01975926,3238.7,3238.5,0.176]
[1736920645287,3.08775,3238.6,3238.1,2.19642277]
[1736920645451,3.08794,3238.4,3238.2,0.176]
[1736920649254,3.08794,3238.4,3238.3,0.176]
[1736920649974,0.01975926,3238.6,3238.0,1.37642277]
[1736920650174,3.08822,3238.2,3238.1,0.176]
[1736920650475,3.10797926,3238.2,3238.1,0.176]
[1736920653998,0.01975926,3238.2,3237.6,1.37642277]
[1736920654178,3.08851,3237.8,3237.3,3.60242277]
[1736920654345,3.08851,3237.8,3237.4,0.176]
[1736920654346,0.01975926,3237.7,3237.4,0.176]
[1736920655375,0.01975926,3237.7,3237.3,4.28392179]
[1736920655565,3.08861,3237.7,3237.4,0.176]
[1736920655770,0.01975926,3237.6,3237.4,0.176]
[1736920658594,3.875,3237.5,3237.4,0.176]
[1736920659498,3.0888,3237.5,3237.4,0.176]
[1736920662159,3.47827593,3237.5,3237.4,0.176]
[1736920664285,0.7862,3237.7,3237.4,1.55242277]
[1736920664597,0.7862,3237.7,3236.2,3.0]
[1736920664598,0.01975926,3237.6,3237.5,0.176]
[1736920665098,3.89465926,3237.6,3237.5,0.176]
[1736920665599,3.89465926,3237.6,3237.1,1.37642277]
[1736920665812,3.08881,3237.5,3237.2,0.176]
[1736920666116,0.01975926,3237.4,3237.2,0.176]
[1736920671316,0.7891,3237.3,3236.5,0.28605778]
[1736920671621,0.7891,3237.3,3235.9,1.28502697]
[1736920671622,0.7891,3236.6,3235.9,1.28502697]
[1736920671822,3.09023,3236.0,3235.9,1.28502697]
[1736920672002,3.09004,3236.2,3235.9,1.28502697]
[1736920672216,3.10996926,3236.1,3235.6,1.37642277]
[1736920673114,0.01975926,3236.1,3235.6,1.37642277]
[1736920673430,3.0903,3236.0,3235.5,0.808]
[1736920674027,3.0903,3236.0,3235.6,0.176]
[1736920674400,3.09034,3235.9,3235.6,0.176]
[1736920675223,3.09043,3235.8,3235.6,0.176]
[1736920676034,0.80885926,3236.1,3235.6,0.176]
[1736920676324,3.09052,3235.7,3235.6,0.176]
[1736920676960,0.01975926,3235.9,3235.5,0.808]
[1736920677162,3.09092,3235.3,3235.2,0.808]
[1736920677365,3.09092,3235.3,3235.2,0.984]
[1736920677565,3.09092,3235.3,3235.2,0.176]
[1736920680486,3.09092,3235.3,3235.0,0.808]
[1736920680652,3.09092,3235.3,3235.2,0.176]
[1736920688216,0.01975926,3235.5,3235.2,0.176]
[1736920688438,0.755,3236.0,3235.3,0.7705]
[1736920688599,3.09055,3235.7,3235.3,0.7705]
[1736920689319,3.09062,3235.6,3235.3,0.7705]
[1736920696097,3.09062,3235.6,3235.4,0.176]
[1736920699310,3.09062,3235.6,3235.4,1.55391206]
[1736920703521,3.09071,3235.5,3235.4,0.176]
[1736920705114,3.09071,3235.5,3235.4,1.55391206]
[1736920705718,3.09071,3235.5,3235.4,0.176]
[1736920706726,3.09071,3235.5,3235.4,1.55391206]
[1736920706914,3.11013926,3235.9,3235.4,1.55391206]
[1736920707118,3.09064,3235.6,3235.4,1.55391206]
[1736920710073,3.09109,3235.1,3234.9,0.46047199]
[1736920710368,3.86594926,3235.0,3234.9,0.46047199]
[1736920711171,3.86594926,3235.0,3234.4,0.176]
[1736920711172,3.09157,3234.6,3234.4,0.176]
[1736920712062,3.09157,3234.6,3234.5,0.176]
[1736920714741,3.09157,3234.6,3234.0,3.7705]
[1736920714947,3.09157,3234.6,3234.1,0.176]
[1736920715169,3.09167,3234.5,3234.1,0.176]
[1736920716680,3.0915,3234.7,3234.1,0.176]
[1736920717680,3.0915,3234.7,3234.2,2.91282256]
[1736920718190,3.0915,3234.7,3234.3,0.176]
[1736920718911,3.11105926,3234.9,3234.3,0.176]
[1736920719103,3.0913,3234.9,3234.4,0.8179]
[1736920719414,0.01975926,3234.8,3234.4,0.8179]
[1736920722098,3.11113926,3234.8,3234.4,0.8179]
[1736920733373,3.11113926,3234.8,3234.4,2.19659927]
[1736920742678,3.11113926,3234.8,3234.5,0.176]
[1736920743678,0.01975926,3234.8,3234.5,0.176]
[1736920743887,0.01975926,3234.9,3234.5,0.176]
[1736920749483,0.01975926,3234.9,3234.6,1.37869927]
[1736920751366,0.01975926,3234.9,3234.7,0.176]
[1736920752167,3.87163,3235.2,3234.8,1.37869927]
[1736920752361,3.09103,3235.2,3234.9,0.7979]
[1736920752565,0.01975926,3235.5,3234.9,0.7979]
[1736920752783,3.09084,3235.4,3234.9,0.7979]
[1736920752984,0.33081919,3235.3,3235.0,1.37869927]
[1736920753372,0.01975926,3235.3,3235.0,1.37869927]
[1736920756999,3.11067926,3235.3,3235.0,1.37869927]
[1736920757870,3.11067926,3235.3,3235.2,1.37869927]
[1736920758698,0.01975926,3235.3,3235.2,1.55469927]
[1736920758897,0.01975926,3235.5,3235.2,1.55469927]
[1736920759835,3.09081,3235.4,3235.2,1.55469927]
[1736920760100,0.01975926,3235.3,3235.2,1.55469927]
[1736920770712,3.11065926,3235.3,3235.2,1.55469927]
[1736920776704,3.09053,3235.7,3235.3,0.8287]
[1736920776883,3.09053,3235.7,3235.6,1.37869927]
[1736920783213,0.01975926,3235.8,3235.4,1.37869927]
[1736920783420,3.09063,3235.6,3235.4,1.37869927]
[1736920783619,0.01975926,3235.5,3235.4,1.37869927]
[1736920790539,0.01975926,3235.5,3235.4,1.55469927]
[1736920790726,3.09063,3235.6,3235.4,1.55469927]
[1736920792225,0.01975926,3235.5,3235.4,1.55469927]
[1736920794347,0.01975926,3235.5,3235.4,1.37869927]
[1736920794509,3.89749,3235.0,3234.9,1.29068947]
[1736920795209,3.09147,3234.8,3234.6,1.37869927]
[1736920795407,0.01975926,3234.7,3234.6,1.37869927]
[1736920795708,3.09147,3234.7,3234.6,1.37869927]
[1736920797043,3.09147,3234.7,3234.6,1.55469927]
[1736920799243,3.09168,3234.5,3234.2,1.29068947]
[1736920799548,3.11143926,3234.5,3234.4,1.37869927]
[1736920799838,3.09168,3234.5,3234.4,1.55469927]
[1736920801533,3.09168,3234.5,3233.8,1.29068947]
[1736920801751,3.11126926,3234.7,3234.4,1.37869927]
[1736920801916,0.01975926,3234.7,3234.6,1.37869927]
[1736920802119,0.01975926,3234.8,3234.6,1.37869927]
[1736920803213,3.09131,3234.9,3234.7,0.7921]
[1736920803408,3.09112,3235.1,3234.8,1.37869927]
[1736920803641,3.09112,3235.1,3235.0,1.37869927]
[1736920804720,3.09112,3235.1,3234.7,0.7921]
[1736920804721,3.0914,3234.8,3234.7,1.37869927]
[1736920807065,3.09164,3234.6,3234.5,1.37869927]
[1736920807254,3.88914,3234.6,3234.5,1.37869927]
[1736920807449,3.88914,3234.6,3234.5,1.55469927]
[1736920808932,0.01975926,3235.0,3234.5,2.34679927]
[1736920809146,3.09141,3234.8,3234.5,0.9681]
[1736920809322,0.01975926,3234.7,3234.5,0.9681]
[1736920810065,3.11095926,3235.0,3234.6,1.37869927]
[1736920810372,0.7975,3235.1,3234.9,1.37869927]
[1736920810373,0.01975926,3235.1,3234.9,1.37869927]
[1736920811121,3.09101,3235.2,3234.9,1.37869927]
[1736920811329,3.09101,3235.2,3235.1,1.37869927]
[1736920812951,3.09101,3235.2,3235.1,1.55469927]
[1736920813336,3.09101,3235.2,3235.1,3.08724451]
[1736920813541,3.09082,3235.4,3235.1,3.08724451]
[1736920813738,3.88793,3235.8,3235.1,3.08724451]
[1736920813739,0.7975,3235.8,3235.1,3.08724451]
[1736920814076,3.09074,3235.5,3235.1,3.47517896]
[1736920814770,3.09074,3235.5,3235.2,0.176]
[1736920814935,3.09074,3235.5,3235.3,0.176]
[1736920818474,3.09074,3235.5,3235.4,2.91124451]
[1736920819917,3.09074,3235.5,3235.3,0.176]
[1736920820170,3.09074,3235.5,3234.6,3.23467993]
[1736920820171,3.87365926,3235.4,3234.9,0.176]
[1736920820384,0.78285926,3235.4,3234.9,3.08724451]
[1736920820538,3.09091,3235.3,3234.9,3.08724451]
[1736920820743,0.01975926,3235.2,3234.9,3.08724451]
[1736920821353,0.01975926,3235.2,3234.9,0.176]
[1736920821592,0.7631,3235.1,3234.9,0.176]
[1736920821870,0.01975926,3235.0,3234.9,0.176]
[1736920822073,3.11094926,3235.0,3234.9,0.176]
[1736920822597,3.09128,3234.9,3234.8,0.176]
[1736920823039,0.01975926,3235.0,3234.4,2.91124451]
[1736920823244,3.0915,3234.7,3234.5,0.176]
[1736920823490,0.01975926,3234.6,3234.5,0.176]
[1736920825196,3.09182,3234.4,3234.1,2.91124451]
[1736920825404,0.01975926,3234.3,3234.2,0.176]
[1736920826397,3.09182,3234.4,3234.2,0.176]
[1736920826603,0.01975926,3234.3,3234.2,0.176]
[1736920827548,3.09182,3234.4,3234.2,0.176]
[1736920827748,3.09157,3234.6,3234.2,0.176]
[1736920828049,0.01975926,3234.7,3234.4,2.91124451]
[1736920828419,3.09139,3234.8,3234.4,2.91124451]
[1736920828847,0.01975926,3234.7,3234.4,2.91124451]
[1736920829011,0.33087419,3234.7,3234.4,2.91124451]
[1736920829345,3.09166,3234.5,3234.4,2.91124451]
[1736920829550,3.11141926,3234.5,3234.4,2.91124451]
[1736920831547,3.09166,3234.5,3234.4,2.91124451]
[1736920831908,3.09166,3234.5,3234.2,0.176]
[1736920831909,0.78285926,3234.7,3234.2,0.176]
[1736920832112,3.8546,3234.7,3234.2,0.176]
[1736920832346,3.0915,3234.7,3234.2,0.176]
[1736920833156,3.85438,3234.9,3234.4,2.91124451]
[1736920833326,3.85438,3234.9,3234.4,3.66394451]
[1736920833651,0.01975926,3234.8,3234.4,3.66394451]
[1736920834252,0.01975926,3234.8,3234.4,4.04793896]
[1736920834450,0.01975926,3235.0,3234.4,4.04793896]
[1736920834650,0.01975926,3235.0,3234.4,3.66394451]
[1736920835650,3.11095926,3235.0,3234.4,3.66394451]
[1736920839145,0.01975926,3235.2,3234.7,2.91124451]
[1736920839345,3.09119,3235.0,3234.7,2.91124451]
[1736920839538,0.01975926,3234.9,3234.7,2.91124451]
[1736920839844,3.09119,3235.0,3234.7,2.91124451]
[1736920843653,3.09119,3235.0,3234.8,0.176]
[1736920844336,0.01975926,3235.2,3234.8,1.004]
[1736920844337,3.091,3235.2,3234.8,1.004]
[1736920844538,0.61221391,3235.5,3235.0,2.91124451]
[1736920844859,3.11059926,3235.4,3235.0,2.91124451]
[1736920845160,0.47420058,3235.4,3235.0,2.91124451]
[1736920845317,3.09101,3235.2,3235.0,2.91124451]
[1736920845520,0.01975926,3235.1,3235.0,2.91124451]
[1736920846047,0.01975926,3235.1,3234.8,1.004]
[1736920847318,3.11085926,3235.1,3234.8,1.004]
[1736920847519,3.0911,3235.1,3234.8,1.004]
[1736920848953,3.09092,3235.3,3234.8,1.004]
[1736920849656,3.09092,3235.3,3235.0,2.91124451]
[1736920850037,0.8216,3235.6,3235.0,2.91124451]
[1736920850237,3.09072,3235.5,3235.1,0.774]
[1736920850473,3.09072,3235.5,3235.3,2.91124451]
[1736920850972,3.0,3236.3,3235.3,2.91124451]
[1736920850973,3.09054,3235.7,3235.3,2.91124451]
[1736920851127,0.8317,3236.1,3235.6,2.91124451]
[1736920851331,3.09036,3235.9,3235.7,0.176]
[1736920852752,3.09036,3235.9,3235.8,0.176]
[1736920858481,3.09002,3236.3,3235.8,0.176]
[1736920858687,3.09033,3235.9,3235.8,0.176]
[1736920871367,3.09022,3236.1,3235.8,0.176]
[1736920871568,3.09022,3236.1,3236.0,1.3775842]
[1736920874978,3.09022,3236.1,3236.0,1.5535842]
[1736920878912,3.08978,3236.5,3236.0,3.7046684]
[1736920879212,0.7597,3237.0,3236.4,2.1510842]
[1736920879504,3.08928,3237.0,3236.8,2.90822928]
[1736920879710,3.08928,3237.0,3236.9,0.176]
[1736920880294,3.08904,3237.3,3237.0,0.7735]
[1736920880489,3.08904,3237.3,3237.1,2.90822928]
[1736920882616,4.4680815,3237.7,3237.1,2.90822928]
[1736920882778,3.08883,3237.5,3237.1,2.90822928]
[1736920883407,3.08858,3237.8,3237.5,0.7735]
[1736920886207,0.60794639,3238.1,3237.4,2.90822928]
[1736920886434,3.0888,3237.5,3237.4,2.90822928]
[1736920886810,3.0888,3237.5,3237.1,2.90822928]
[1736920887178,3.08889,3237.4,3237.1,2.90822928]
[1736920888514,3.08889,3237.4,3237.2,0.176]
[1736920888684,0.7597,3238.0,3237.2,0.176]
[1736920888887,3.08899,3237.3,3237.2,0.176]
[1736920889087,1.068599,3237.3,3236.5,2.90822928]
[1736920889288,3.08949,3236.8,3236.6,0.176]
[1736920889619,3.08949,3236.8,3236.7,0.176]
[1736920890199,3.08959,3236.7,3236.5,2.90822928]
[1736920890403,3.08959,3236.7,3236.6,0.176]
[1736920890601,3.08993,3236.4,3236.0,0.7735]
[1736920890783,3.08959,3236.7,3236.1,0.176]
[1736920890985,3.09023,3236.0,3235.9,0.176]
[1736920892331,3.84993,3236.0,3235.9,0.176]
[1736920892540,3.09066,3235.6,3235.4,2.90822928]
[1736920892736,3.09066,3235.6,3235.5,0.176]
[1736920893101,3.09071,3235.5,3235.4,2.90822928]
[1736920893439,3.09071,3235.5,3235.1,0.7735]
[1736920893440,3.0908,3235.4,3235.3,0.176]
[1736920896213,3.09071,3235.5,3234.9,2.90822928]
[1736920896510,3.09097,3235.3,3235.2,0.176]
[1736920902478,3.0911,3235.1,3234.5,0.7933]
[1736920902643,3.09088,3235.4,3234.6,0.176]
[1736920902844,3.09121,3235.0,3234.6,0.176]
[1736920903472,3.0909,3235.4,3234.8,2.90822928]
[1736920903670,3.0909,3235.4,3234.9,0.176]
[1736920903883,3.0909,3235.4,3235.0,0.176]
[1736920905439,3.0909,3235.4,3235.0,0.9693]
[1736920905971,3.09064,3235.6,3235.1,2.90822928]
[1736920906142,0.7721,3235.8,3235.1,2.90822928]
[1736920906470,3.09066,3235.6,3235.1,2.90822928]
[1736920907450,3.08756972,3235.6,3235.1,2.90822928]
[1736920908653,1.3765201,3235.8,3235.1,2.90822928]
[1736920908852,3.09075,3235.5,3235.1,2.90822928]
[1736920912203,3.09075,3235.5,3235.1,3.29598221]
[1736920920732,3.09053,3235.7,3235.4,2.90822928]
[1736920921028,3.09053,3235.7,3235.4,3.69852928]
[1736920921728,3.09071,3235.5,3235.4,2.90822928]
[1736920921896,0.6044201,3235.8,3235.2,0.176]
[1736920922222,3.09083,3235.4,3235.2,0.176]
[1736920922526,3.0909,3235.3,3235.2,0.176]
[1736920934012,3.0909,3235.3,3234.7,2.90822928]
[1736920934240,0.7643,3235.6,3234.2,0.7505]
[1736920934412,3.09158,3234.6,3234.3,3.08422928]
[1736920934834,3.09158,3234.6,3234.3,2.90822928]
[1736920935036,3.09158,3234.6,3234.4,0.176]
[1736920937237,3.09158,3234.6,3234.3,2.90822928]
[1736920937441,3.09158,3234.6,3234.4,0.176]
[1736920939807,0.7643,3234.8,3234.4,0.176]
[1736920940169,3.09122,3235.0,3234.7,0.8181]
[1736920941207,3.09134,3234.9,3234.7,0.8181]
[1736920943438,3.09134,3234.9,3234.6,2.90822928]
[1736920953377,0.8194,3235.4,3234.6,2.90822928]
[1736920953378,3.09108,3235.2,3234.7,0.7948]
[1736920953523,3.72230161,3235.2,3234.9,2.90822928]
[1736920954555,0.63122161,3235.2,3234.9,2.90822928]
[1736920954859,3.0911,3235.1,3234.9,2.90822928]
[1736920956971,3.0911,3235.1,3234.9,3.08422928]
[1736920957272,2.74419653,3235.1,3234.9,3.08422928]
[1736920959346,2.74419653,3235.1,3235.0,1.37828467]
[1736920966342,3.09078,3235.5,3235.0,2.91199781]
[1736920966555,3.09078,3235.5,3235.4,1.37828467]
[1736920966888,3.09065,3235.6,3235.4,1.37828467]
[1736920967089,3.09065,3235.6,3235.5,1.37828467]
[1736920968955,3.09065,3235.6,3235.5,1.55428467]
[1736920973771,3.09065,3235.6,3235.5,1.37828467]
[1736920973977,3.09065,3235.6,3235.5,1.55328467]
[1736920977175,0.8316,3236.1,3235.5,2.52101314]
[1736920977379,3.09013,3236.1,3236.0,1.37828467]
[1736920978014,3.69772947,3236.1,3236.0,1.37828467]
[1736920981287,3.09061,3235.6,3235.5,0.175]
[1736920981484,3.09061,3235.6,3235.5,1.55328467]
[1736920995048,0.7907,3235.6,3235.2,1.37828467]
[1736920995290,3.8816,3235.3,3235.0,1.37828467]
[1736920995592,3.09109,3235.1,3235.0,1.55328467]
[1736920996179,0.7907,3235.0,3234.6,0.175]
[1736920996368,3.09147,3234.7,3234.6,0.175]
[1736920999359,3.09164,3234.6,3234.5,0.175]
[1736921002198,3.09131,3234.9,3234.6,0.7998]
[1736921002492,3.09119,3235.0,3234.8,2.91250435]
[1736921002871,3.09119,3235.0,3234.9,0.175]
[1736921006224,3.09083,3235.4,3234.9,0.175]
[1736921006374,3.09103,3235.2,3234.9,0.175]
[1736921006576,3.09103,3235.2,3234.9,0.48375044]
[1736921006880,3.09084,3235.4,3235.1,3.71230435]
[1736921007875,3.09094,3235.3,3235.1,3.71230435]
[1736921012038,3.09099,3235.2,3235.1,3.71230435]
[1736921012238,3.09099,3235.2,3235.1,2.91250435]
[1736921017039,3.09099,3235.2,3235.1,3.08750435]
[1736921017412,3.09099,3235.2,3235.1,1.55322231]
[1736921018114,3.09099,3235.2,3235.1,1.37822231]
[1736921018557,3.09109,3235.1,3234.3,0.8221]
[1736921018760,3.09128,3234.9,3234.8,1.37822231]
[1736921023959,3.09128,3234.9,3234.3,0.8221]
[1736921024304,3.09165,3234.6,3234.4,0.175]
[1736921025491,3.09128,3234.9,3234.4,0.175]
[1736921025659,3.481358,3234.9,3234.8,1.37822231]
[1736921029011,3.09128,3234.9,3234.8,1.37822231]
[1736921030569,8.41053,3235.7,3234.8,3.51164462]
[1736921030570,5.32,3235.7,3234.8,3.51164462]
[1736921030686,5.32,3235.7,3234.6,0.175]
[1736921030687,3.09052,3235.7,3235.6,1.37822231]
[1736921031092,3.72329416,3235.7,3235.6,1.37822231]
[1736921031416,3.09052,3235.7,3235.6,1.37822231]
[1736921031607,0.60588977,3235.9,3235.6,1.37822231]
[1736921031789,3.09014,3236.1,3235.8,2.13342231]
[1736921031992,3.09014,3236.1,3236.0,1.37822231]
[1736921032487,4.287189,3236.6,3236.0,2.75644462]
[1736921032691,5.32,3236.8,3236.0,1.37822231]
[1736921033004,3.08966,3236.6,3236.5,1.37822231]
[1736921033407,3.08989,3236.4,3236.2,2.90932032]
[1736921035095,3.08994,3236.3,3236.2,2.90932032]
[1736921035401,3.09012,3236.2,3235.9,2.90932032]
[1736921038344,0.62990906,3236.8,3235.9,2.90932032]
[1736921038540,3.09023,3236.0,3235.9,0.175]
[1736921040611,3.09023,3236.0,3235.8,0.175]
[1736921041604,3.09033,3235.9,3235.8,0.175]
[1736921041849,3.09033,3235.9,3235.6,2.90932032]
[1736921042124,3.09033,3235.9,3235.8,0.175]
[1736921043100,1.00021583,3236.8,3235.8,0.175]
[1736921043308,3.09015,3236.1,3235.9,3.66542032]
[1736921043818,3.09023,3236.0,3235.9,3.66542032]
[1736921044021,3.09023,3236.0,3235.9,3.84042032]
[1736921048124,3.09023,3236.0,3235.9,0.175]
[1736921048831,3.09023,3236.0,3235.6,3.66542032]
[1736921049031,3.09023,3236.0,3235.7,0.175]
[1736921049231,3.09023,3236.0,3235.8,0.175]
[1736921049973,3.09023,3236.0,3235.6,4.03196235]
[1736921050146,3.09023,3236.0,3235.7,0.175]
[1736921050868,0.7825,3236.3,3235.7,0.175]
[1736921051456,3.09035,3235.9,3235.6,3.66542032]
[1736921051628,3.09035,3235.9,3235.7,0.175]
[1736921052372,3.09042,3235.8,3235.7,0.175]
[1736921054279,3.09042,3235.8,3235.3,3.66542032]
[1736921054469,3.09055,3235.7,3235.4,0.175]
[1736921055187,1.15484766,3236.0,3235.4,0.175]
[1736921055392,3.09064,3235.6,3235.5,0.175]
[1736921056597,0.7825,3236.0,3235.5,0.175]
[1736921056761,3.09069,3235.6,3235.5,0.175]
[1736921059257,3.09033,3235.9,3235.3,2.90932032]
[1736921059258,3.0908,3235.4,3235.3,2.90932032]
[1736921059466,3.0908,3235.4,3235.3,3.08432032]
[1736921059671,3.091,3235.2,3235.0,2.90932032]
[1736921059889,3.091,3235.2,3235.1,0.175]
[1736921062531,0.38932,3235.2,3234.7,2.90932032]
[1736921062736,3.09128,3234.9,3234.8,0.175]
[1736921064730,3.09106,3235.2,3234.8,0.175]
[1736921064930,3.09106,3235.2,3235.0,2.90932032]
[1736921065910,3.09109,3235.1,3235.0,2.90932032]
[1736921069747,3.09119,3235.0,3234.8,0.175]
[1736921069918,0.8022,3235.4,3234.8,0.175]
[1736921070112,3.09128,3234.9,3234.8,0.175]